bitfinex/quotes_SOLUSD_20250403
["timestamp","ask_amount","ask_price","bid_price","bid_amount"]
[1743702746978,36.03081592,114.31,114.26,35.36271592]
[1743702747378,27.28271592,114.3,114.26,35.36271592]
[1743702748281,27.28271592,114.3,114.26,8.08]
[1743702748487,36.03171592,114.3,114.26,16.8318]
[1743702748787,163.28271592,114.32,114.28,27.28271592]
[1743702749369,163.28271592,114.32,114.27,45.93236478]
[1743702749873,172.03021592,114.32,114.28,8.7504]
[1743702750585,163.28271592,114.32,114.28,8.7504]
[1743702750784,154.55186157,114.34,114.28,36.03311592]
[1743702750979,27.28271592,114.33,114.28,36.03311592]
[1743702751161,47.42487749,114.36,114.28,36.03311592]
[1743702751162,8.7452,114.35,114.3,27.28271592]
[1743702751368,27.28271592,114.35,114.3,27.28271592]
[1743702751873,27.28271592,114.33,114.29,56.34446478]
[1743702752079,27.28271592,114.33,114.29,10.4121]
[1743702752591,8.745,114.35,114.29,37.69481592]
[1743702752781,27.28271592,114.33,114.29,37.69481592]
[1743702753093,27.28271592,114.33,114.29,10.4121]
[1743702754293,27.28271592,114.31,114.27,8.7508]
[1743702754673,27.28271592,114.31,114.27,36.03351592]
[1743702754895,27.28271592,114.32,114.27,36.03351592]
[1743702755795,27.28271592,114.33,114.28,27.28271592]
[1743702755993,27.28271592,114.33,114.29,27.28271592]
[1743702756176,27.28271592,114.33,114.29,36.03161592]
[1743702758005,27.28271592,114.33,114.29,8.7489]
[1743702758202,8.7462,114.34,114.29,8.7489]
[1743702758431,27.28271592,114.31,114.27,36.03391592]
[1743702758709,27.28271592,114.31,114.27,8.7512]
[1743702759313,27.28271592,114.3,114.27,8.7512]
[1743702760133,36.03161592,114.3,114.26,10.3094]
[1743702760429,27.28271592,114.29,114.26,10.3094]
[1743702760613,27.28271592,114.29,114.25,27.28271592]
[1743702760614,27.28271592,114.28,114.25,8.7522]
[1743702761129,8.7489,114.3,114.25,8.7522]
[1743702761313,27.28271592,114.29,114.25,36.03491592]
[1743702761628,27.28271592,114.29,114.25,8.7522]
[1743702762033,27.28271592,114.26,114.22,8.7545]
[1743702762340,27.28271592,114.26,114.22,36.03721592]
[1743702763528,36.03471592,114.26,114.22,36.03721592]
[1743702763825,27.28271592,114.26,114.22,36.03721592]
[1743702765525,36.03481592,114.26,114.22,8.7545]
[1743702765708,27.28271592,114.25,114.22,8.7545]
[1743702766323,27.28271592,114.24,114.21,8.7553]
[1743702766507,27.28271592,114.25,114.21,8.7553]
[1743702767531,8.7521,114.26,114.21,8.7553]
[1743702767737,27.28271592,114.25,114.21,8.7553]
[1743702769140,27.28271592,114.25,114.2,1.5253]
[1743702769141,27.28271592,114.23,114.2,1.5253]
[1743702769427,27.28271592,114.22,114.19,8.7566]
[1743702769631,27.28271592,114.22,114.18,8.7581]
[1743702772613,27.28271592,114.2,114.17,8.7585]
[1743702772814,27.28271592,114.19,114.17,8.7585]
[1743702773027,27.28271592,114.19,114.16,336.3992]
[1743702774523,27.28271592,114.19,114.16,327.64]
[1743702774715,27.28271592,114.18,114.16,336.3995]
[1743702775131,27.28271592,114.19,114.16,336.3995]
[1743702775526,27.28271592,114.19,114.16,8.7595]
[1743702776227,27.28271592,114.18,114.15,8.7604]
[1743702776425,27.28271592,114.18,114.14,10.3889]
[1743702776625,27.28271592,114.17,114.14,8.7607]
[1743702777031,27.28271592,114.18,114.14,8.7607]
[1743702777344,27.28271592,114.17,114.14,8.7607]
[1743702777524,27.28271592,114.17,114.14,30.6636]
[1743702778123,136.0,114.19,114.14,30.6636]
[1743702778324,27.28271592,114.18,114.14,30.6636]
[1743702780461,27.28271592,114.18,114.14,57.94631592]
[1743702780953,27.28271592,114.19,114.14,57.94631592]
[1743702781144,27.28271592,114.19,114.15,27.28271592]
[1743702781453,27.28271592,114.18,114.14,101.75211592]
[1743702782047,27.28271592,114.18,114.14,57.94631592]
[1743702782458,27.28271592,114.19,114.15,27.28271592]
[1743702783651,163.28271592,114.2,114.15,27.28271592]
[1743702784222,163.28271592,114.2,114.16,30.6586]
[1743702785152,27.28271592,114.23,114.19,27.28271592]
[1743702785755,27.28271592,114.23,114.18,27.28271592]
[1743702786054,27.28271592,114.23,114.19,27.28271592]
[1743702786434,27.28271592,114.23,114.2,8.7565]
[1743702788530,27.28271592,114.23,114.19,30.65]
[1743702791156,27.28271592,114.2,114.16,28.33774886]
[1743702791321,27.28271592,114.19,114.16,8.7593]
[1743702792227,27.28271592,114.2,114.16,8.7593]
[1743702793551,27.28271592,114.19,114.16,8.7593]
[1743702794045,27.28271592,114.18,114.15,8.7599]
[1743702794253,27.28271592,114.19,114.15,36.04261592]
[1743702794852,27.28271592,114.19,114.15,8.7599]
[1743702795147,27.28271592,114.19,114.15,36.04261592]
[1743702795744,27.28271592,114.18,114.15,8.7599]
[1743702796332,144.7574,114.19,114.15,8.7599]
[1743702796333,163.28271592,114.19,114.15,8.7599]
[1743702797362,27.28271592,114.18,114.15,8.7599]
[1743702798234,163.28271592,114.19,114.15,36.04261592]
[1743702798555,163.28271592,114.19,114.15,57.94361592]
[1743702800669,27.28271592,114.19,114.15,57.94361592]
[1743702801372,169.35381592,114.2,114.15,57.94361592]
[1743702801530,163.28271592,114.22,114.18,27.28271592]
[1743702801735,153.40603204,114.22,114.18,17.40603204]
[1743702803534,17.40603204,114.22,114.19,8.7573]
[1743702803736,27.19569529,114.22,114.19,8.7573]
[1743702804959,27.19569529,114.23,114.19,8.7573]
[1743702805672,30.4127,114.25,114.19,8.7573]
[1743702805673,0.14216157,114.24,114.19,8.7573]
[1743702805853,27.19569529,114.23,114.19,8.7573]
[1743702806375,27.19569529,114.24,114.19,59.49179529]
[1743702806542,27.33785686,114.25,114.2,27.19569529]
[1743702806870,27.19569529,114.24,114.2,27.19569529]
[1743702807771,27.19569529,114.24,114.21,8.7558]
[1743702807973,27.19569529,114.25,114.21,8.7558]
[1743702808440,2.29562186,114.24,114.21,30.6453]
[1743702809874,29.49131715,114.24,114.21,8.7558]
[1743702810553,27.19569529,114.24,114.21,8.7558]
[1743702810847,27.19569529,114.23,114.2,8.7561]
[1743702811055,27.19569529,114.22,114.2,8.7561]
[1743702811263,27.19569529,114.23,114.2,8.7561]
[1743702811775,27.19569529,114.22,114.17,21.8968]
[1743702812078,27.19569529,114.21,114.18,8.7577]
[1743702812375,27.19569529,114.22,114.18,8.7577]
[1743702813080,27.19569529,114.22,114.18,57.84859529]
[1743702813252,163.19569529,114.23,114.18,57.84859529]
[1743702814277,2.29917483,114.22,114.18,57.84859529]
[1743702814481,29.49487012,114.22,114.18,57.84859529]
[1743702814848,2.29917483,114.22,114.18,57.84859529]
[1743702815174,29.49487012,114.22,114.18,57.84859529]
[1743702815466,2.29917483,114.22,114.18,57.84859529]
[1743702815672,163.19569529,114.23,114.19,27.19569529]
[1743702815985,136.0,114.23,114.19,27.19569529]
[1743702816350,163.19569529,114.23,114.2,8.7565]
[1743702816549,27.19569529,114.23,114.2,8.7565]
[1743702817164,27.19569529,114.22,114.19,8.7569]
[1743702817369,27.19569529,114.22,114.18,8.7576]
[1743702817955,27.19569529,114.23,114.18,35.95329529]
[1743702818163,163.19569529,114.24,114.19,27.19569529]
[1743702818363,163.19569529,114.24,114.2,8.7565]
[1743702818973,2.30057698,114.22,114.2,35.95219529]
[1743702819869,2.30057698,114.22,114.2,8.7565]
[1743702820870,27.19569529,114.24,114.2,8.7565]
[1743702821974,2.30009319,114.23,114.21,27.19569529]
[1743702822180,2.30009319,114.23,114.22,27.19569529]
[1743702822360,2.30009319,114.23,114.22,37.61029529]
[1743702823269,2.30009319,114.23,114.22,8.755]
[1743702823879,8.752,114.26,114.22,8.755]
[1743702824081,26.14866394,114.26,114.22,8.755]
[1743702824573,8.752,114.26,114.22,8.755]
[1743702824755,144.7514,114.27,114.22,26.15166394]
[1743702824951,17.39666394,114.26,114.22,26.15166394]
[1743702825156,17.39666394,114.26,114.22,8.755]
[1743702825570,19.6965582,114.25,114.22,8.755]
[1743702826681,2.29989426,114.24,114.22,8.755]
[1743702828396,17.39666394,114.26,114.22,26.15166394]
[1743702828677,142.2976,114.29,114.25,8.7527]
[1743702828883,159.69426394,114.29,114.25,8.7527]
[1743702829490,153.39666394,114.29,114.25,8.7527]
[1743702829697,136.0,114.29,114.25,26.14936394]
[1743702830189,2.29898715,114.28,114.25,48.03116394]
[1743702830880,2.29898715,114.28,114.25,26.14936394]
[1743702831463,17.39666394,114.29,114.25,26.14936394]
[1743702831669,26.14646394,114.29,114.25,26.14936394]
[1743702831870,26.14646394,114.29,114.24,35.87286394]
[1743702831871,8.7498,114.29,114.24,35.87286394]
[1743702832079,26.14646394,114.29,114.24,35.87286394]
[1743702833067,8.7489,114.3,114.24,35.87286394]
[1743702833274,17.39666394,114.29,114.24,35.87286394]
[1743702833988,8.7489,114.3,114.24,35.87286394]
[1743702834158,2.29565919,114.28,114.24,35.87286394]
[1743702835285,2.29565919,114.28,114.25,17.39666394]
[1743702835867,2.29565919,114.28,114.24,57.75656394]
[1743702836062,17.39666394,114.29,114.25,17.39666394]
[1743702836279,26.14576394,114.3,114.25,17.39666394]
[1743702836789,153.39666394,114.31,114.27,17.39666394]
[1743702837088,26.14336394,114.33,114.28,17.39666394]
[1743702837264,17.39666394,114.33,114.28,17.39666394]
[1743702837470,26.14326394,114.33,114.29,17.39666394]
[1743702837667,2.29402323,114.3,114.27,17.39666394]
[1743702838192,2.29402323,114.3,114.26,21.8791]
[1743702838361,2.29402323,114.3,114.27,26.14786394]
[1743702838986,17.39666394,114.31,114.27,26.14786394]
[1743702839187,26.14506394,114.31,114.27,26.14786394]
[1743702839378,17.39666394,114.3,114.26,26.14816394]
[1743702840179,26.14556394,114.3,114.26,26.14816394]
[1743702840395,17.39666394,114.28,114.25,8.7522]
[1743702840893,17.39666394,114.29,114.25,8.7522]
[1743702841490,26.14646394,114.29,114.25,8.7522]
[1743702842895,26.14646394,114.29,114.22,27.9866]
[1743702842896,17.39666394,114.27,114.22,29.9465]
[1743702843097,17.39666394,114.28,114.24,17.39666394]
[1743702843387,162.14646394,114.29,114.24,17.39666394]
[1743702843575,17.39666394,114.28,114.24,17.39666394]
[1743702844669,162.14646394,114.29,114.24,17.39666394]
[1743702845200,162.14646394,114.29,114.25,17.39666394]
[1743702845387,17.39666394,114.29,114.25,17.39666394]
[1743702845907,26.14666394,114.29,114.25,17.39666394]
[1743702846267,17.39666394,114.28,114.23,26.15026394]
[1743702847687,17.39666394,114.28,114.24,17.39666394]
[1743702848509,17.39666394,114.29,114.25,17.39666394]
[1743702848794,136.0,114.3,114.27,17.39666394]
[1743702849185,136.0,114.3,114.28,17.39666394]
[1743702849375,17.39666394,114.32,114.29,8.7496]
[1743702849571,6.3372,114.34,114.29,26.14626394]
[1743702849889,17.39666394,114.35,114.3,17.39666394]
[1743702850194,17.39666394,114.35,114.31,17.39666394]
[1743702851198,17.39666394,114.35,114.32,8.7473]
[1743702851199,2.29418283,114.34,114.32,8.7473]
[1743702851896,2.29418283,114.34,114.31,8.7477]
[1743702852390,2.29418283,114.34,114.31,35.88208399]
[1743702852787,27.13438399,114.35,114.31,35.88208399]
[1743702853295,27.13438399,114.36,114.32,27.13438399]
[1743702853479,178.21528399,114.37,114.32,27.13438399]
[1743702853681,42.21528399,114.37,114.32,27.13438399]
[1743702854295,27.13438399,114.37,114.33,27.13438399]
[1743702854486,144.7431,114.38,114.33,27.13438399]
[1743702854487,171.87748399,114.38,114.33,27.13438399]
[1743702854689,2.29129763,114.36,114.33,27.13438399]
[1743702854891,2.29129763,114.36,114.32,27.13438399]
[1743702855283,2.29129763,114.36,114.33,8.7466]
[1743702855472,2.29129763,114.36,114.33,35.88098399]
[1743702855877,27.13438399,114.37,114.33,35.88098399]
[1743702856078,144.7431,114.38,114.33,35.88098399]
[1743702856292,171.87748399,114.38,114.33,35.88098399]
[1743702856878,136.0,114.38,114.34,27.13438399]
[1743702857075,27.13438399,114.36,114.33,8.7466]
[1743702857278,29.42285443,114.37,114.33,8.7466]
[1743702858006,38.16655443,114.37,114.33,8.7466]
[1743702858382,2.28847044,114.37,114.33,35.88098399]
[1743702858700,171.87758399,114.38,114.33,35.88098399]
[1743702859200,136.0,114.38,114.35,27.13438399]
[1743702859403,27.13438399,114.4,114.35,27.13438399]
[1743702859706,27.13438399,114.4,114.36,27.13438399]
[1743702859902,136.0,114.41,114.38,35.87708399]
[1743702860076,43.84078399,114.43,114.38,35.87708399]
[1743702860281,178.29498399,114.43,114.38,35.87708399]
[1743702860491,33.55568399,114.43,114.38,35.87708399]
[1743702860693,172.01514556,114.44,114.39,27.13438399]
[1743702861291,27.13438399,114.44,114.4,27.13438399]
[1743702861690,35.87258399,114.44,114.4,27.13438399]
[1743702862098,35.87258399,114.44,114.4,35.87518399]
[1743702862402,33.29748399,114.46,114.41,27.13438399]
[1743702862789,27.13438399,114.45,114.41,27.13438399]
[1743702863109,27.13438399,114.45,114.4,35.87518399]
[1743702863807,35.87258399,114.45,114.4,35.87518399]
[1743702864709,27.13438399,114.44,114.39,35.87598399]
[1743702865613,27.13438399,114.43,114.38,43.91668399]
[1743702865910,27.13438399,114.4,114.35,1.6388]
[1743702866086,27.13438399,114.4,114.35,37.51778399]
[1743702866287,27.13438399,114.41,114.37,27.13438399]
[1743702867414,35.87328399,114.43,114.38,27.13438399]
[1743702867790,144.7385,114.44,114.4,27.13438399]
[1743702867991,171.87288399,114.44,114.4,35.87548399]
[1743702868191,35.87288399,114.44,114.4,8.7411]
[1743702868695,27.13438399,114.43,114.39,35.87598399]
[1743702869508,27.13438399,114.43,114.38,35.87668399]
[1743702869713,8.7385,114.44,114.37,43.91758399]
[1743702869714,27.13438399,114.42,114.37,43.91758399]
[1743702870718,35.87478399,114.41,114.37,35.17438399]
[1743702870922,35.87478399,114.41,114.35,23.5007]
[1743702870923,27.13438399,114.4,114.35,45.55778399]
[1743702871219,27.13438399,114.4,114.35,18.4234]
[1743702871429,27.13438399,114.39,114.35,37.51778399]
[1743702872102,27.13438399,114.39,114.35,28.77318399]
[1743702872326,0.14216157,114.4,114.35,37.51808399]
[1743702872521,27.13438399,114.4,114.35,37.51808399]
[1743702873133,8.742,114.39,114.35,37.51808399]
[1743702873830,35.87638399,114.39,114.35,10.3837]
[1743702874329,35.87638399,114.39,114.35,37.51808399]
[1743702875935,8.7412,114.4,114.35,37.51808399]
[1743702876237,27.13438399,114.39,114.35,37.51808399]
[1743702877240,27.13438399,114.39,114.35,10.3837]
[1743702877540,27.13438399,114.38,114.35,10.3837]
[1743702877743,27.13438399,114.37,114.33,8.7462]
[1743702878112,27.13438399,114.36,114.32,10.3341]
[1743702879134,35.87878399,114.36,114.32,1.5872]
[1743702879431,27.13438399,114.35,114.32,1.5872]
[1743702879607,27.13438399,114.34,114.3,371.58288399]
[1743702880014,27.13438399,114.34,114.3,335.7]
[1743702880236,27.13438399,114.34,114.3,327.66]
[1743702880531,27.13438399,114.34,114.3,363.54298399]
[1743702880744,144.7444,114.36,114.3,363.54298399]
[1743702880914,144.7443,114.36,114.32,27.13438399]
[1743702881114,136.0,114.36,114.33,27.13438399]
[1743702881633,136.0,114.36,114.3,393.45518399]
[1743702881634,136.0,114.36,114.32,27.13438399]
[1743702882942,163.13438399,114.36,114.32,27.13438399]
[1743702883915,163.13438399,114.36,114.32,35.88108399]
[1743702885743,27.13438399,114.36,114.32,35.88108399]
[1743702887652,35.87868399,114.36,114.31,8.7477]
[1743702887943,27.13438399,114.35,114.31,8.7477]
[1743702888141,27.27654556,114.32,114.26,8.7519]
[1743702888349,27.13438399,114.29,114.26,8.7519]
[1743702889048,27.13438399,114.29,114.25,10.331]
[1743702889631,27.13438399,114.29,114.25,1.5786]
[1743702889939,27.13438399,114.27,114.23,327.46]
[1743702890238,27.13438399,114.27,114.23,336.2139]
[1743702890747,35.88548399,114.28,114.23,363.34828399]
[1743702891072,27.13438399,114.27,114.23,363.34828399]
[1743702892443,27.13438399,114.26,114.23,327.46]
[1743702894343,35.88568399,114.27,114.23,327.46]
[1743702895353,27.13438399,114.27,114.23,336.214]
[1743702895654,35.88568399,114.27,114.23,336.214]
[1743702896549,27.13438399,114.27,114.23,336.214]
[1743702896939,35.88598399,114.27,114.23,336.214]
[1743702898147,27.13438399,114.26,114.23,327.46]
[1743702898355,35.88638399,114.26,114.23,327.46]
[1743702898659,27.13438399,114.24,114.21,8.7551]
[1743702898852,8.752,114.26,114.2,8.7561]
[1743702898853,27.13438399,114.23,114.2,8.7561]
[1743702901270,27.13438399,114.24,114.2,8.7561]
[1743702901856,35.88798399,114.24,114.2,8.7561]
[1743702902043,27.13438399,114.23,114.19,37.55778399]
[1743702902356,27.13438399,114.23,114.19,10.4234]
[1743702903061,27.13438399,114.21,114.18,8.7577]
[1743702903240,144.7546,114.23,114.18,8.7577]
[1743702903445,27.13438399,114.22,114.18,8.7577]
[1743702904064,27.13438399,114.21,114.18,8.7577]
[1743702904961,27.13438399,114.21,114.17,8.7588]
[1743702906555,136.0,114.23,114.18,27.13438399]
[1743702906764,136.0,114.23,114.19,27.13438399]
[1743702907068,136.0,114.23,114.2,8.7565]
[1743702907843,0.14216157,114.25,114.2,35.89088399]
[1743702908039,136.0,114.25,114.21,27.13438399]
[1743702908347,163.13438399,114.28,114.23,27.13438399]
[1743702909062,163.13438399,114.28,114.24,8.7535]
[1743702909261,27.13438399,114.27,114.24,8.7535]
[1743702910466,27.13438399,114.25,114.18,20.29884886]
[1743702910656,27.13438399,114.23,114.19,8.7573]
[1743702912460,27.13438399,114.23,114.19,35.89168399]
[1743702912858,136.0,114.29,114.22,27.13438399]
[1743702913058,136.0,114.31,114.27,8.7512]
[1743702913370,163.13438399,114.31,114.27,35.88558399]
[1743702913591,27.13438399,114.31,114.27,43.92558399]
[1743702914780,27.13438399,114.31,114.27,16.7912]
[1743702914967,27.13438399,114.3,114.27,8.04]
[1743702915165,27.13438399,114.29,114.27,16.791]
[1743702915473,27.13438399,114.3,114.27,16.791]
[1743702915676,43.45578972,114.3,114.27,16.791]
[1743702916760,136.0,114.33,114.28,43.45578972]
[1743702916965,179.45578972,114.33,114.29,43.45578972]
[1743702917268,43.45578972,114.3,114.27,16.791]
[1743702917649,43.45578972,114.31,114.27,16.791]
[1743702917859,179.45578972,114.33,114.28,43.45578972]
[1743702918169,179.45578972,114.34,114.29,43.45578972]
[1743702918363,43.45578972,114.34,114.3,43.45578972]
[1743702918674,43.45578972,114.34,114.31,8.7481]
[1743702919481,52.20168972,114.34,114.3,8.7489]
[1743702920167,52.20168972,114.34,114.27,29.9171]
[1743702920168,43.45578972,114.32,114.27,51.49578972]
[1743702920367,43.45578972,114.31,114.26,51.49578972]
[1743702920574,43.45578972,114.3,114.26,16.7919]
[1743702920754,43.45578972,114.3,114.26,60.24768972]
[1743702920957,43.45578972,114.3,114.26,8.7519]
[1743702921260,179.45578972,114.32,114.27,43.45578972]
[1743702921460,136.0,114.32,114.28,43.45578972]
[1743702922676,136.0,114.32,114.29,52.20538972]
[1743702922879,43.45578972,114.34,114.3,43.45578972]
[1743702923087,179.45578972,114.35,114.3,43.45578972]
[1743702924483,43.45578972,114.34,114.3,43.45578972]
[1743702924858,43.45578972,114.34,114.31,8.7481]
[1743702925688,136.0,114.35,114.31,8.7481]
[1743702925874,43.45578972,114.34,114.31,8.7481]
[1743702926282,43.45578972,114.34,114.3,8.7489]
[1743702927186,52.20158972,114.34,114.3,8.7489]
[1743702927684,43.45578972,114.34,114.3,8.7489]
[1743702928687,52.20158972,114.34,114.3,8.7489]
[1743702928899,144.7454,114.35,114.3,52.20468972]
[1743702929186,43.45578972,114.34,114.3,52.20468972]
[1743702929675,43.45578972,114.34,114.3,8.7489]
[1743702929870,43.59795129,114.31,114.25,329.2947]
[1743702930078,43.45578972,114.29,114.25,372.75048972]
[1743702930386,43.45578972,114.29,114.25,329.2947]
[1743702930694,43.45578972,114.29,114.26,8.7519]
[1743702930891,52.20478972,114.3,114.25,338.047]
[1743702931065,43.45578972,114.27,114.25,327.78]
[1743702931265,43.45578972,114.26,114.22,1.6472]
[1743702931611,43.45578972,114.23,114.19,49.73464941]
[1743702932501,43.45578972,114.24,114.19,93.19043913]
[1743702932987,43.45578972,114.23,114.19,93.19043913]
[1743702933371,43.45578972,114.23,114.19,49.73464941]
[1743702933571,43.45578972,114.22,114.19,10.4121]
[1743702933772,43.45578972,114.22,114.19,1.6551]
[1743702934375,43.45578972,114.22,114.18,336.3977]
[1743702934707,164.7539,114.24,114.18,336.3977]
[1743702934708,43.45578972,114.21,114.18,336.3977]
[1743702935174,43.45578972,114.22,114.18,336.3977]
[1743702936678,136.0,114.23,114.2,43.45578972]
[1743702937077,136.0,114.23,114.21,43.45578972]
[1743702937795,136.0,114.23,114.22,8.755]
[1743702938103,179.59795129,114.26,114.22,8.755]
[1743702938994,179.45578972,114.26,114.22,8.755]
[1743702939374,188.20778972,114.26,114.22,8.755]
[1743702941499,43.45578972,114.27,114.23,43.45578972]
[1743702941866,136.0,114.29,114.26,43.45578972]
[1743702942093,43.45578972,114.3,114.26,43.45578972]
[1743702943284,52.20468972,114.3,114.25,43.45578972]
[1743702943489,43.45578972,114.29,114.25,8.7527]
[1743702943686,52.20538972,114.29,114.25,8.7527]
[1743702943987,136.0,114.31,114.25,52.20848972]
[1743702943988,43.45578972,114.3,114.25,52.20848972]
[1743702944186,43.45578972,114.3,114.26,43.45578972]
[1743702945076,43.45578972,114.3,114.25,52.20848972]
[1743702945301,52.20488972,114.3,114.25,52.20848972]
[1743702945502,43.45578972,114.29,114.25,8.7527]
[1743702946384,43.45578972,114.28,114.24,60.24888972]
[1743702947274,43.45578972,114.28,114.24,16.7931]
[1743702947474,43.45578972,114.28,114.24,60.24888972]
[1743702947772,8.7497,114.29,114.24,60.24888972]
[1743702947773,43.59795129,114.29,114.24,60.24888972]
[1743702947980,43.45578972,114.29,114.24,60.24888972]
[1743702948572,52.20548972,114.29,114.24,60.24888972]
[1743702949300,43.45578972,114.28,114.24,60.24888972]
[1743702949703,52.20548972,114.29,114.24,60.24888972]
[1743702950002,208.20498972,114.3,114.25,52.20788972]
[1743702950708,43.45578972,114.29,114.25,8.7521]
[1743702950905,52.20598972,114.29,114.25,8.7521]
[1743702952011,43.45578972,114.29,114.25,8.7521]
[1743702952383,52.20548972,114.29,114.25,8.7521]
[1743702952582,52.20548972,114.29,114.24,60.24888972]
[1743702952894,52.20658972,114.28,114.24,16.7931]
[1743702953382,43.45578972,114.28,114.24,16.7931]
[1743702953707,52.20578972,114.29,114.24,60.24888972]
[1743702954906,52.20628972,114.28,114.24,16.7931]
[1743702955512,43.45578972,114.28,114.24,16.7931]
[1743702955809,27.16772717,114.28,114.24,16.7931]
[1743702956011,27.16772717,114.29,114.24,43.96082717]
[1743702956305,27.16772717,114.29,114.24,65.84452717]
[1743702956501,35.91732717,114.29,114.24,43.96082717]
[1743702957305,27.16772717,114.29,114.24,43.96082717]
[1743702957685,35.91732717,114.29,114.24,43.96082717]
[1743702958491,35.91732717,114.29,114.22,42.12014886]
[1743702958492,27.16772717,114.27,114.23,8.7541]
[1743702959392,35.91962717,114.26,114.22,10.3384]
[1743702959592,27.16772717,114.24,114.2,27.16772717]
[1743702959798,27.16772717,114.24,114.2,35.92392717]
[1743702960914,27.16772717,114.24,114.2,8.7562]
[1743702961215,27.16772717,114.23,114.19,35.92482717]
[1743702962113,163.16772717,114.24,114.19,35.92482717]
[1743702962291,136.0,114.24,114.2,27.16772717]
[1743702963622,136.0,114.24,114.21,8.7558]
[1743702963819,27.16772717,114.23,114.2,8.7561]
[1743702964010,27.16772717,114.23,114.19,8.7573]
[1743702964319,171.92122717,114.24,114.19,35.92502717]
[1743702965408,27.16772717,114.23,114.19,35.92502717]
[1743702965716,35.92202717,114.23,114.19,35.92502717]
[1743702965894,35.92202717,114.23,114.18,373.24042717]
[1743702965895,27.16772717,114.22,114.18,373.24042717]
[1743702966410,27.16772717,114.22,114.18,346.0727]
[1743702966800,35.92202717,114.23,114.18,373.24042717]
[1743702967213,27.16772717,114.23,114.18,373.24042717]
[1743702967399,163.16772717,114.24,114.19,27.16772717]
[1743702969112,171.92122717,114.24,114.2,8.7565]
[1743702969614,171.92122717,114.24,114.19,35.92462717]
[1743702969820,27.16772717,114.23,114.19,8.7569]
[1743702970118,27.16772717,114.22,114.19,8.7569]
[1743702970420,27.16772717,114.23,114.19,35.92462717]
[1743702971517,27.16772717,114.23,114.19,8.7569]
[1743702972326,35.92202717,114.23,114.19,8.7569]
[1743702972497,35.92202717,114.23,114.19,8.7573]
[1743702972698,27.16772717,114.23,114.19,35.92502717]
[1743702972906,171.92152717,114.24,114.19,35.92502717]
[1743702973120,163.16772717,114.24,114.19,35.92502717]
[1743702974121,136.0,114.24,114.2,27.16772717]
[1743702974724,171.92142717,114.24,114.19,35.92502717]
[1743702976316,163.16772717,114.24,114.19,35.92502717]
[1743702976725,136.0,114.24,114.2,27.16772717]
[1743702977730,136.0,114.24,114.21,8.7558]
[1743702978316,163.16772717,114.24,114.21,8.7558]
[1743702978515,136.0,114.24,114.21,8.7558]
[1743702980039,163.16772717,114.24,114.18,1.635]
[1743702980223,27.16772717,114.23,114.19,8.7573]
[1743702982438,35.92232717,114.23,114.19,8.7573]
[1743702983833,27.16772717,114.22,114.18,10.3928]
[1743702984507,27.16772717,114.22,114.18,37.56052717]
[1743702985718,35.92232717,114.23,114.18,37.56052717]
[1743702986834,27.16772717,114.23,114.18,37.56052717]
[1743702987032,163.30988874,114.24,114.19,27.16772717]
[1743702987235,163.30988874,114.24,114.2,27.16772717]
[1743702987236,136.0,114.24,114.2,27.16772717]
[1743702987734,136.0,114.24,114.21,8.7558]
[1743702988253,2.29625576,114.23,114.21,8.7558]
[1743702989948,171.92082717,114.25,114.21,8.7558]
[1743702990320,171.92082717,114.25,114.2,35.92382717]
[1743702990519,27.16772717,114.24,114.2,8.7561]
[1743702991218,27.16772717,114.23,114.2,8.7561]
[1743702992242,35.92192717,114.23,114.19,8.7573]
[1743702992430,27.16772717,114.23,114.19,8.7573]
[1743702992641,35.92222717,114.23,114.19,8.7573]
[1743702994548,27.16772717,114.23,114.19,8.7573]
[1743702999355,35.92202717,114.23,114.19,8.7573]
[1743702999649,26.15827197,114.23,114.19,8.7573]
[1743702999838,2.30112472,114.22,114.19,8.7573]
[1743703000442,2.30112472,114.22,114.19,26.16127197]
[1743703000857,2.30112472,114.22,114.2,17.40397197]
[1743703001043,2.30112472,114.22,114.21,17.40397197]
[1743703001358,136.0,114.23,114.19,8.7573]
[1743703001542,136.0,114.23,114.19,26.16127197]
[1743703002231,136.0,114.23,114.2,17.40397197]
[1743703002765,136.0,114.23,114.2,26.16007197]
[1743703003259,136.0,114.23,114.2,17.40397197]
[1743703003448,136.0,114.23,114.19,26.16087197]
[1743703004158,2.30552234,114.22,114.19,26.16087197]
[1743703004332,2.30552234,114.22,114.19,17.40397197]
[1743703004829,11.06062234,114.22,114.18,19.03897197]
[1743703005031,11.06062234,114.22,114.18,27.79697197]
[1743703005229,11.06062234,114.22,114.18,19.03897197]